Cogmind - Beta 9.2 @@@ ROGUE MODE // 2019.11.08 @ 14:57:15 Player: cptwinky Result: Core destroyed Performance ------------- Evolutions (0) 0 Regions Visited (1) 200 Robots Destroyed (8) 40 Value Destroyed (206) 206 Prototype IDs (0) 0 Alien Tech Used (0) 0 Bonus (0) 0 TOTAL SCORE: 446 Bonus ------- None Cogmind --------- Core Integrity 0/250 Matter 300/300 Energy 100/100 System Corruption 0% Temperature Cool (0) Movement Core (50) Location -10/Materials Parts ------- > --- POWER (1) -------- (None) > --- PROPULSION (2) --- (None) > --- UTILITY (2) ------ (None) > --- WEAPON (2) ------- (None) > --- INVENTORY (4) ---- Wheel Wheel Hacking Suite Grenade Launcher Peak State ------------ > --- POWER ------------ Light Ion Engine > --- PROPULSION ------- Light Treads Wheel > --- UTILITY ---------- Small Storage Unit > --- WEAPON ----------- Medium Laser Small Laser > --- INVENTORY -------- Ion Engine Light Treads Wheel [Rating: 6] Favorites ----------- Power Light Ion Engine Engine Light Ion Engine Propulsion Light Treads Treads Light Treads Wheel Wheel Utility Small Storage Unit Device Heat Sink Storage Small Storage Unit Weapon Medium Laser Energy Gun Medium Laser Build | -11 -10 ------- Run | Scr Mat Slots Evolved . | . . Power . | . . Propulsion . | . . Utility . | . . Weapon . | . . Parts Attached 11 | 6 5 Power 2 | 1 1 Engine 2 | 1 1 Core . | . . Reactor . | . . Propulsion 3 | 2 1 Treads 2 | 1 1 Leg . | . . Wheel 1 | 1 . Hover . | . . Flight . | . . Utility 2 | 1 1 Device 1 | . 1 Storage 1 | 1 . Processor . | . . Hackware . | . . Protection . | . . Artifact . | . . Weapon 4 | 2 2 Energy Gun 4 | 2 2 Energy Cannon . | . . Ballistic Gun . | . . Ballistic Cannon . | . . Launcher . | . . Special Weapon . | . . Impact Weapon . | . . Slashing Weapon . | . . Piercing Weapon . | . . Special Melee Weapon . | . . Unidentified Prototypes . | . . Parts Lost 5 | . 5 Power 1 | . 1 Propulsion 1 | . 1 Utility . | . . Weapon 3 | . 3 Highest Loss Streak 4 | . 4 Average Slot Usage (%) 62 | . 62 Engine 10 | . 10 Treads 14 | . 14 Wheel 4 | . 4 Device 3 | . 3 Storage 13 | . 13 Energy Gun 16 | . 16 Naked Turns 15 | . 15 Heaviest Build 12 | 10 12 Greatest Support 20 | 10 20 Greatest Overweight (x) 1 | . 1 Average Overweight (x) . | . . Largest Inventory Capacity 6 | 6 6 Average Capacity 5 | 5 5 Most Carried 6 | 6 6 Average Carried 4 | 4 5 Final Capacity 6 | 6 4 Final Carried 6 | 6 4 Class Distribution -------------------- 100% | Mutant Dominant Class ---------------- Mutant | -10/Materials Resources | -11 -10 ----------- Run | Scr Mat Matter Collected 295 | 260 35 Remotely . | . . Salvage Created 252 | 61 191 Parts 13 | . 13 Haulers Intercepted . | . . Recyclers Shooed . | . . Parts Field Recycled . | . . Retrieved Matter . | . . Parts Self-Destructed . | . . Prevented . | . . Kills | -11 -10 ------- Run | Scr Mat Combat Hostiles Destroyed 5 | . 5 Melee 1 | . 1 Guns 4 | . 4 Classes Destroyed 4 | 1 3 Recycler 1 | 1 . Operator 2 | . 2 Swarmer 3 | . 3 Grunt 2 | . 2 Best Kill Streak 6 | 1 6 Combat Bots Only 4 | . 4 Max Kills in Single Turn 1 | 1 1 Gunslinging . | . . Exploded . | . . Melee 1 | . 1 Uniques/NPCs Destroyed . | . . Combat | -11 -10 -------- Run | Scr Mat Damage Taken 754 | . 754 Core 250 | . 250 Absorbed by Shields . | . . Core Remaining (%) 100 | 100 . Volleys Fired 59 | 5 54 Largest 2 | 2 2 Hottest 90 | 90 90 Shots Fired 75 | 10 65 Gun 75 | 10 65 Cannon . | . . Launcher . | . . Special . | . . Kinetic . | . . Thermal 39 | 10 29 Explosive . | . . Electromagnetic 36 | . 36 Robot Hit Streak 11 | 10 11 Robot Miss Streak 3 | . 3 Penetration Max . | . . Secondary Targets 1 | . 1 Max Gunslinging Chain 1 | . 1 Shots Hit Robots 55 | 10 45 Core Hits 15 | 2 13 Critical Hits . | . . Critical Kills . | . . Critical Parts Destroyed . | . . Melee Attacks . | . . Impact . | . . Slashing . | . . Piercing . | . . Sneak Attacks . | . . Combat Hostiles . | . . Follow-up Attacks . | . . Damage Inflicted 398 | 118 280 Guns 370 | 118 252 Cannons . | . . Explosions . | . . Melee . | . . Ramming 28 | . 28 Kinetic . | . . Thermal 221 | 118 103 Explosive . | . . Electromagnetic 149 | . 149 Impact . | . . Slashing . | . . Piercing . | . . Highest Corruption . | . . Average Corruption . | . . Corruption Purged . | . . Overload Shots . | . . Overflow Damage . | . . Projectiles . | . . Explosions . | . . Melee . | . . Knockbacks . | . . Impact . | . . Kinetic . | . . Secondary . | . . Self-Inflicted Damage 6 | . 6 Shots . | . . Rammed 16 | . 16 Targets Rammed 16 | . 16 Kicked . | . . Crushed . | . . Highest Temperature 362 | 150 362 Average Temperature 205 | 76 233 Received Heat Transfer 60 | . 60 Effects 2 | . 2 Shutdowns 1 | . 1 Energy Bleed 1 | . 1 Siege Activations . | . . Robots Corrupted . | . . Combat Hostiles . | . . Parts Fried . | . . Impact Corruptions . | . . Robots Melted . | . . Combat Hostiles . | . . Parts Melted 1 | . 1 Heat Transferred 606 | 310 296 Parts Sabotaged . | . . Parts Stolen . | . . Parts Stripped . | . . Power Chain Reactions . | . . Missiles Intercepted . | . . Alert | -11 -10 ------- Run | Scr Mat Peak Influence 208 | 5 208 Average Influence 77 | 1 92 Maximum Alert Level 1 | . 1 Low Security (%) 97 | 100 96 Level 1 2 | . 3 Level 2 . | . . Level 3 . | . . Level 4 . | . . Level 5 . | . . High Security . | . . Max Security . | . . Squads Dispatched 3 | . 3 Investigation 2 | . 2 Extermination . | . . Reinforcement 1 | . 1 Assault . | . . Garrison . | . . Intercept . | . . Construction Impeded . | . . Haulers Reinforced . | . . Stealth | -11 -10 --------- Run | Scr Mat Distress Signals 2 | . 2 Communications Jammed . | . . Distress Signals . | . . Times Spotted 13 | . 13 Peak Tracking Total 6 | . 6 Tactical Retreats 1 | . 1 Traps | -11 -10 ------- Run | Scr Mat Traps Triggered 1 | . 1 Indirectly . | . . Trap Hack Attempts . | . . Triggered . | . . Disarmed . | . . Reprogrammed . | . . Reused . | . . Traps Extracted . | . . Installed . | . . Triggered . | . . Machines | -11 -10 ---------- Run | Scr Mat Machines Disabled 1 | . 1 Max in Single Turn 1 | . 1 Machines Sabotaged 1 | . 1 Garrisons Compromised . | . . Overloaded Fab Kills . | . . Fab Network Shutdowns . | . . Hacking | -11 -10 --------- Run | Scr Mat Machines Accessed 3 | . 3 Terminals 3 | . 3 Fabricators . | . . Repair Stations . | . . Recycling Units . | . . Scanalyzers . | . . Garrison Access . | . . Total Hacks 5 | . 5 Successful 2 | . 2 Failed 3 | . 3 Catastrophic . | . . Database Lockouts . | . . Manual 5 | . 5 Terminals 5 | . 5 Fabricators . | . . Repair Stations . | . . Recycling Units . | . . Scanalyzers . | . . Garrison Access . | . . Terminal Hacks . | . . Fabricator Hacks . | . . Repair Station Hacks . | . . Recycling Unit Hacks . | . . Scanalyzer . | . . Garrison Access Hacks . | . . Unauthorized Hacks 4 | . 4 Terminals 2 | . 2 Sabotage 2 | . 2 Fabricators . | . . Repair Stations . | . . Recycling Units . | . . Scanalyzers . | . . Garrison Access . | . . Data Cores Recovered . | . . Used . | . . Hacking Detections 1 | . 1 Full Trace Events 1 | . 1 Feedback Events . | . . Feedback Blocked . | . . Robot Schematics Acquired . | . . Robots Built . | . . Matter . | . . Time . | . . Total Robot Build Rating . | . . Part Schematics Acquired . | . . Parts Built . | . . Matter . | . . Time . | . . Total Part Build Rating . | . . Parts Repaired . | . . Time . | . . Parts Recycled . | . . Recycled Matter . | . . Retrieved Matter . | . . Retrieved Components . | . . Parts Scanalyzed . | . . Part Schematics Acquired . | . . Parts Damaged . | . . Bothacking | -11 -10 ------------ Run | Scr Mat Used RIF Installer . | . . Robots Hacked . | . . Non-combat . | . . Combat . | . . Robot Hacks Applied . | . . Relay Couplers Released . | . . Robots Rewired . | . . Allies Hacked . | . . Hacks Repelled . | . . Allies | -11 -10 -------- Run | Scr Mat Total Allies . | . . Largest Group . | . . Highest-Rated Group . | . . Highest-Rated Ally . | . . Total Orders . | . . Ally Attacks . | . . Total Damage . | . . Kills . | . . Allies Corrupted . | . . Allies Melted . | . . Intel | -11 -10 ------- Run | Scr Mat Robot Analysis Total . | . . Derelict Logs Recovered . | . . Drone Launches . | . . Drone Recoveries . | . . Exploration | -11 -10 ------------- Run | Scr Mat Turns Passed 379 | 65 314 Spaces Moved 217 | 45 172 Core 68 | 2 66 Treads 12 | . 12 Legs . | . . Wheels 137 | 43 94 Hover . | . . Flight . | . . Fastest Speed 50 | 50 50 Average Speed 85 | 78 87 Slowest Speed 160 | 80 160 Overloaded Moves . | . . Propulsion Burnouts . | . . Robots Hopped . | . . Cave-ins Triggered . | . . Exploration Rate (%) 29 | 4 55 Regions Visited 1 Branch Regions . Pre-discovered Areas . | . . Known Exits Taken . | . . Unknown Exits Taken 1 | 1 . Scrap Searched . | . . Spaces Dug . | . . Terrain Destroyed . | . . Melee . | . . Projectile . | . . AOE . | . . Actions | -11 -10 --------- Run | Scr Mat Total 325 | 61 264 Wait 11 | . 11 Move 216 | 44 172 Hop . | . . Pick Up 9 | 6 3 Fast Attach 7 | 6 1 Attach 2 | . 2 Detach . | . . Swap 2 | . 2 Drop 4 | . 4 Fire 59 | 5 54 Melee . | . . Ram 4 | . 4 Kick . | . . Crush 11 | . 11 Escape Stasis . | . . Rewire . | . . Trap . | . . Miscellaneous . | . . Route ------- -11/Scrapyard -10/Materials (discovered 1 exit: [*Min]) History --------- Turn | Location | Event 27 | -11/Scrapyard | Discovered new exit (range 15) 66 | -11/Scrapyard | Entered Materials 258 | -10/Materials | Core integrity fell below 50% 276 | -10/Materials | Lost 4 parts (1p1n2w) 303 | -10/Materials | Core integrity fell below 20% 310 | -10/Materials | Build established: Mutant 335 | -10/Materials | Discovered new exit (range 7) 380 | -10/Materials | Core destroyed Last Messages --------------- 00345_ ALERT: Suspicious activity at Terminal M002. Dispatching Investigation squad. 00350_ Slammed into W-16 Scout. 00350_ K-01 Serf collects debris. 00354_ K-01 Serf cleans the Terminal. 00361_ K-01 Serf collects debris. 00365_ Dropped Sml. Storage Unit. 00366_ K-01 Serf collects debris. 00369_ Connecting with Terminal... 00369_ Neutrino Reactor explodes. >>Force(Sabotage) SYSTEM_VULNERABLE[Neutrino Reactor] NETWORK_OVERLOAD COORDINATES_RETRIEVED 00369_ ALERT: Suspicious activity at Terminal M001. Dispatching Investigation squad. 00369_ Neutrino Reactor explodes. 00369_ Terminal disabled. 00372_ R-06 Scavenger collects Sml. Storage Unit. 00378_ Slammed into G-34 Mercenary. Map ----- +----------------------------------------------------+ | ??????????????????????????????????????????????? | | ??????????????????????????????????????????????? | | ??????????????????????????????????????????????? | | ??????????????????????????????????????????????? | | ??????????????????????????????????????????????? | | ??????????????????????????????????????????????? | | ??????????????????????????????????????????????? | | ??????????????????????????????????????????????? | | ??????????????????????????????????????????????? | | ??????????????????????????????????????????????? | | ??????????????????????????????????????????????? | | ??????????????????????????????????????????????? | | ??????????????????????????????????????????????? | | ??????????????????????????????????????????????? | | ??????????????????????????????????????????????? | | ??????????????????????????????????????????????? | | ??????????????????????????????????????????????? | | ????????????????????###########???????????????? | | ????????????????????# #???????????????? | | ????????????????????#" #???????????????? | | ????????????????????# % #???????????????? | | ????????????????????#" #???????????????? | | ######??????????????# #???????????????? | | =*=%#??????????????# """ #??????#????????? | | %!|#??????????????# ag""" #????? #????????? | | !!=#??????????????# g@""" #??? ##???????? | | #??????????????#####/####### #???????? | | #?????????????????# % #???????? | | #?????????????????# #???????? | | #?????????????????+ #???????? | | #?????????????????# ##### #???????? | | #########?????????# #??????? #???????? | | ###+## ! ########### #?????????????????? | | ####??????????????? | | < """#??????????????? | | "T Y"#??????????????? | | # #" "# """#??????????????? | | # #" !"! "# ####??????????????? | | + #"""""""# =%= #?????????????????? | | # ######### """???????????????? | | # ?? """ T"#??????????????? | | # """ """#??????????????? | | # """ ####??????????????? | | # ????????????????? | | # ???????????????? | | # ??????????????? | | # ###########+################??????????????? | | # #?????????????????????????????????????????? | | # +?????????????????????????????????????????? | | # #?????????????????????????????????????????? | +----------------------------------------------------+ Best States ------------- Heat Dissipation 35 Energy Generation 10 Energy Capacity 250 Matter Stores 300 Matter Capacity 300 Sight Range 16 Terrain Scan Density 10 Evasion (%) 50 Recoil Reduction 2 Item Schematics ----------------- None Robot Schematics ------------------ None Fabricated ------------ Nothing Alien Tech Used ----------------- None Achievements -------------- None Challenges ------------ None Game ------ Seed DroneHeavyRifle Manual? 0 Play Time 00:07:41 Cumulative 390.1 hours Start 2019.11.08 @ 14:52:40 End 2019.11.08 @ 14:57:15 Sessions 1 Manual Loads 0 Difficulty Rogue Special Mode None Game No. 308 Rogue 304 Adventurer 4 Explorer 0 Win Type - Total 30 Types 24/2/1/1/2/0/0 Lore% 92 Gallery% 93 Achievement% 87 Wizard Run 0 Options --------- ASCII 0 Keyboard 0 Movement Vi Keybinds 0 Fullscreen 0 Font 16/Terminus Map View 76x50 Tactical HUD 1 Map Filters NONE Filters NONE Steam 1 RUN: 293d3660-bbff-41ff-864c-23d66f565bff